fUST/lending_fUST_20240805
["ID","MTS","AMOUNT","RATE_DAILY","PERIOD"]
[334141607,1722793857343,-500.0,0.0001452,2]
[334141608,1722793857353,-500.0,0.0001452,2]
[334141609,1722793857362,-500.0,0.0001452,2]
[334141611,1722793857372,-500.0,0.0001452,2]
[334141613,1722793857382,-237.209571,0.0001452,2]
[334141615,1722793857391,-500.0,0.0001452,2]
[334141617,1722793857401,-151.0,0.0001452,2]
[334141619,1722793857410,-363.5,0.0001452,2]
[334141621,1722793857420,-500.0,0.0001452,2]
[334141623,1722793857431,-500.0,0.0001452,2]
[334141626,1722793857443,-578.75,0.0001452,2]
[334141628,1722793857455,-261.55516145,0.0001452,2]
[334141630,1722793857466,-500.0,0.0001452,2]
[334141632,1722793857477,-500.0,0.0001452,2]
[334141634,1722793857488,-500.0,0.0001452,2]
[334141637,1722793857503,-500.0,0.0001452,2]
[334141639,1722793857514,-622.58,0.0001452,2]
[334141641,1722793857524,-595.18942545,0.0001452,2]
[334141643,1722793857534,-1108.97,0.0001452,2]
[334141645,1722793857543,-500.0,0.0001452,2]
[334141647,1722793857553,-505.24,0.0001452,2]
[334141649,1722793857564,-2231.99416169,0.0001452,2]
[334141663,1722793857688,-1697.87583831,0.0001452,2]
[334141665,1722793857697,-324.31916169,0.0001452,2]
[334144286,1722793886649,404.75983068,8.743e-05,2]
[334145344,1722793899546,210.09102175,0.00027,120]
[334145345,1722793899572,200.0,0.00027,120]
[334145346,1722793899598,289.90897825,0.00027,120]
[334146572,1722794068253,-685.0,0.00017,17]
[334146573,1722794090111,-1000.0,0.000185,31]
[334146574,1722794093745,-177.89,0.000185,31]
[334146575,1722794093774,-822.11,0.000185,31]
[334146576,1722794099421,-355.78,0.000185,31]
[334146577,1722794099453,-644.22,0.000185,31]
[334146578,1722794118153,-533.67,0.000185,31]
[334146579,1722794118186,-466.33,0.000185,31]
[334146580,1722794120270,-711.56,0.000185,31]
[334146581,1722794120302,-288.44,0.000185,31]
[334146582,1722794170239,-711.0,0.000185,31]
[334146584,1722794530999,166.0239984,8.919e-05,2]
[334146585,1722794542062,1000.0,0.00015,15]
[334146586,1722794553532,1795.3780776,8.919e-05,2]
[334146587,1722794562483,4478.29049433,8.919e-05,2]
[334146588,1722794564104,1247.62091396,8.919e-05,2]
[334146589,1722794565889,218.36320889,8.919e-05,2]
[334146590,1722794566656,207.60528276,8.919e-05,2]
[334146591,1722794570281,9239.29051001,8.919e-05,2]
[334146595,1722794668338,1874.0772062,8.464e-05,2]
[334146597,1722794683885,218.09499306,8.919e-05,2]
[334146598,1722794783485,200.6439536,8.936e-05,2]
[334146599,1722794990116,2084.83844091,8.936e-05,2]
[334146673,1722795032061,-200.6439536,9.027e-05,2]
[334146675,1722795032071,-300.0,9.118e-05,2]
[334146677,1722795032081,-300.0,9.118e-05,2]
[334146679,1722795032092,-8242.62722042,9.184e-05,2]
[334146798,1722795038305,-280.86267126,9.184e-05,2]
[334146830,1722795040318,-15837.10868206,9.184e-05,2]
[334146931,1722795043288,-539.40142626,9.184e-05,2]
[334146933,1722795043299,-2379.1007725,9.188e-05,2]
[334146935,1722795043313,-3980.8042416,9.272e-05,2]
[334146937,1722795043322,-250.0,9.925e-05,2]
[334146939,1722795043332,-250.0,9.953e-05,2]
[334146941,1722795043342,-250.0,9.98e-05,2]
[334146943,1722795043352,-154.79103211,9.999e-05,2]
[334146945,1722795043362,-88.38518503,9.999e-05,2]
[334146948,1722795043375,-418.09672325,9.999e-05,2]
[334146950,1722795043386,-154.79103211,9.999e-05,2]
[334146953,1722795043398,-154.79103211,9.999e-05,2]
[334146956,1722795043408,-154.79103211,9.999e-05,2]
[334146959,1722795043417,-181.54668621,9.999e-05,2]
[334146962,1722795043427,-319.72766707,9.999e-05,2]
[334146965,1722795043435,-154.79103211,9.999e-05,2]
[334146968,1722795043445,-154.79103211,9.999e-05,2]
[334146971,1722795043456,-201.4758121,9.999e-05,2]
[334146974,1722795043466,-221.14618085,9.999e-05,2]
[334146976,1722795043476,-154.80649189,9.999e-05,2]
[334146978,1722795043488,-178.30906711,9.999e-05,2]
[334146980,1722795043500,-154.80649189,9.999e-05,2]
[334146981,1722795043511,-155.04520691,9.999e-05,2]
[334146982,1722795043527,-156.05197447,9.999e-05,2]
[334146983,1722795043539,-600.8534117,9.999e-05,2]
[334146984,1722795043551,-154.90559812,9.999e-05,2]
[334146997,1722795043562,-522.26012374,9.999e-05,2]
[334146999,1722795043689,-154.80649189,9.999e-05,2]
[334147001,1722795043699,-304.49275309,9.999e-05,2]
[334147003,1722795043709,-154.81751879,9.999e-05,2]
[334147005,1722795043719,-309.5047931,9.999e-05,2]
[334147007,1722795043729,-519.59956575,9.999e-05,2]
[334147009,1722795043739,-253.58130554,9.999e-05,2]
[334147011,1722795043749,-154.80649189,9.999e-05,2]
[334147013,1722795043760,-166.07680533,9.999e-05,2]
[334147015,1722795043771,-155.85242186,9.999e-05,2]
[334147017,1722795043790,-307.69100047,9.999e-05,2]
[334147019,1722795043803,-154.82195475,9.999e-05,2]
[334147022,1722795043814,-155.00714358,9.999e-05,2]
[334147024,1722795043826,-164.41333768,9.999e-05,2]
[334147026,1722795043837,-204.57207469,9.999e-05,2]
[334147028,1722795043847,-156.8188046,9.999e-05,2]
[334147030,1722795043857,-209.18351946,9.999e-05,2]
[334147032,1722795043866,-155.0861325,9.999e-05,2]
[334147034,1722795043875,-154.80649189,9.999e-05,2]
[334147036,1722795043885,-309.58205802,9.999e-05,2]
[334147038,1722795043894,-494.23715236,9.999e-05,2]
[334147040,1722795043903,-154.86314301,9.999e-05,2]
[334147042,1722795043915,-309.50479928,9.999e-05,2]
[334147044,1722795043926,-157.80579925,9.999e-05,2]
[334147046,1722795043938,-523.06806918,9.999e-05,2]
[334147049,1722795043949,-664.23911189,9.999e-05,2]
[334147051,1722795043959,-231.69830706,9.999e-05,2]
[334147053,1722795043969,-242.86125942,9.999e-05,2]
[334147055,1722795043978,-182.92546344,9.999e-05,2]
[334147057,1722795043988,-287.77266661,0.0001,2]
[334147059,1722795043998,-250.0,0.00010007,2]
[334147061,1722795044007,-420.0,0.0001003,2]
[334147063,1722795044016,-420.0,0.0001003,2]
[334147065,1722795044037,-250.0,0.00010034,2]
[334147067,1722795044048,-250.0,0.00010062,2]
[334147069,1722795044058,-250.0,0.00010089,2]
[334147071,1722795044067,-250.0,0.00010116,2]
[334147073,1722795044077,-250.0,0.00010143,2]
[334147075,1722795044088,-250.0,0.00010171,2]
[334147077,1722795044104,-250.0,0.00010198,2]
[334147079,1722795044114,-250.0,0.00010225,2]
[334147081,1722795044125,-250.0,0.00010252,2]
[334147084,1722795044137,-250.0,0.00010279,2]
[334147086,1722795044149,-250.0,0.00010307,2]
[334147088,1722795044159,-250.0,0.00010334,2]
[334147090,1722795044170,-250.0,0.00010361,2]
[334147092,1722795044181,-250.0,0.00010388,2]
[334147094,1722795044194,-250.0,0.00010416,2]
[334147097,1722795044204,-250.0,0.00010443,2]
[334147099,1722795044215,-1766.41589755,0.00010831,2]
[334147101,1722795044225,-4707.90566682,0.00010831,2]
[334147103,1722795044235,-315.01,0.00010959,2]
[334147105,1722795044244,-625.6,0.00010959,2]
[334147107,1722795044254,-783.84,0.00010959,2]
[334147109,1722795044264,-653.2,0.00010959,2]
[334147111,1722795044275,-544.33,0.00010959,2]
[334147113,1722795044285,-453.61,0.00010959,2]
[334147115,1722795044295,-378.01,0.00010959,2]
[334147117,1722795044304,-315.01,0.00010959,2]
[334147119,1722795044314,-262.51,0.00010959,2]
[334147122,1722795044324,-218.76,0.00010959,2]
[334147124,1722795044334,-182.3,0.00010959,2]
[334147126,1722795044344,-151.91,0.00010959,2]
[334147128,1722795044357,-759.59,0.00010959,2]
[334147130,1722795044368,-319.85,0.00010959,2]
[334147132,1722795044377,-587.0,0.00011033,2]
[334147134,1722795044387,-587.0,0.00011033,2]
[334147136,1722795044397,-823.0,0.00012136,2]
[334147138,1722795044406,-823.0,0.00012136,2]
[334147140,1722795044415,-6269.3233677,0.000129,2]
[334147142,1722795044423,-309.60858817,0.00013,2]
[334147144,1722795044433,-1000.0,0.000131,2]
[334147146,1722795044442,-1495.50653034,0.00013112,2]
[334147148,1722795044451,-954.83482243,0.0001325,2]
[334147150,1722795044460,-1152.0,0.0001335,2]
[334147152,1722795044469,-954.83482243,0.00013406,2]
[334147154,1722795044479,-993.12,0.00013424,2]
[334147156,1722795044487,-6269.32336766,0.00013495,2]
[334147158,1722795044496,-954.83482243,0.00013561,2]
[334147160,1722795044506,-932.00149053,0.00013598,2]
[334147162,1722795044515,-200.0,0.00013673,2]
[334147164,1722795044535,-60970.9602941,0.00013688,2]
[334147166,1722795044547,-993.12,0.00013697,2]
[334147168,1722795044560,-993.12,0.00013697,2]
[334147170,1722795044570,-452.20313772,0.00013698,2]
[334147172,1722795044579,-270.85273045,0.00013698,2]
[334147174,1722795044589,-541.97703794,0.00013698,2]
[334147176,1722795044598,-500.0,0.00013698,2]
[334147178,1722795044608,-500.0,0.00013698,2]
[334147180,1722795044617,-500.0,0.00013698,2]
[334147182,1722795044627,-500.0,0.00013698,2]
[334147184,1722795044636,-500.0,0.00013698,2]
[334147186,1722795044646,-500.0,0.00013698,2]
[334147188,1722795044656,-438.27115216,0.00013698,2]
[334147190,1722795044666,-500.0,0.00013698,2]
[334147192,1722795044677,-500.0,0.00013698,2]
[334147195,1722795044688,-600.0,0.00013698,2]
[334147197,1722795044698,-500.0,0.00013698,2]
[334147199,1722795044709,-500.0,0.00013698,2]
[334147201,1722795044720,-250.0,0.00013698,2]
[334147203,1722795044730,-500.0,0.00013698,2]
[334147205,1722795044741,-500.0,0.00013698,2]
[334147207,1722795044752,-500.0,0.00013698,2]
[334147209,1722795044762,-500.0,0.00013698,2]
[334147211,1722795044783,-500.0,0.00013698,2]
[334147213,1722795044792,-500.0,0.00013698,2]
[334147215,1722795044801,-500.0,0.00013698,2]
[334147217,1722795044810,-500.0,0.00013698,2]
[334147219,1722795044819,-500.0,0.00013698,2]
[334147221,1722795044828,-500.0,0.00013698,2]
[334147223,1722795044838,-500.0,0.00013698,2]
[334147225,1722795044848,-513.48660467,0.00013698,2]
[334147227,1722795044858,-504.65693824,0.00013698,2]
[334147229,1722795044868,-500.0,0.00013698,2]
[334147231,1722795044878,-500.0,0.00013698,2]
[334147233,1722795044887,-500.0,0.00013698,2]
[334147235,1722795044896,-500.0,0.00013698,2]
[334147237,1722795044906,-500.0,0.00013698,2]
[334147239,1722795044915,-500.0,0.00013698,2]
[334147241,1722795044924,-500.0,0.00013698,2]
[334147243,1722795044933,-500.0,0.00013698,2]
[334147245,1722795044942,-500.0,0.00013698,2]
[334147247,1722795044952,-500.0,0.00013698,2]
[334147249,1722795044961,-500.0,0.00013698,2]
[334147251,1722795044970,-500.0,0.00013698,2]
[334147253,1722795044980,-500.0,0.00013698,2]
[334147255,1722795044989,-500.0,0.00013698,2]
[334147257,1722795044999,-500.0,0.00013698,2]
[334147259,1722795045009,-500.0,0.00013698,2]
[334147261,1722795045020,-511.22624464,0.00013698,2]
[334147263,1722795045041,-504.87801131,0.00013698,2]
[334147265,1722795045050,-500.0,0.00013698,2]
[334147267,1722795045060,-500.0,0.00013698,2]
[334147269,1722795045069,-556.67262246,0.00013698,2]
[334147271,1722795045078,-524.43319273,0.00013698,2]
[334147273,1722795045087,-255.14315066,0.00013698,2]
[334147275,1722795045097,-500.0,0.00013698,2]
[334147277,1722795045107,-500.0,0.00013698,2]
[334147279,1722795045118,-311.24328497,0.00013698,2]
[334147281,1722795045127,-500.0,0.00013698,2]
[334147283,1722795045136,-500.0,0.00013698,2]
[334147285,1722795045145,-500.0,0.00013698,2]
[334147287,1722795045155,-500.0,0.00013698,2]
[334147289,1722795045163,-500.0,0.00013698,2]
[334147291,1722795045173,-500.0,0.00013698,2]
[334147293,1722795045183,-361.55008764,0.00013698,2]
[334147295,1722795045194,-500.0,0.00013698,2]
[334147297,1722795045203,-500.0,0.00013698,2]
[334147299,1722795045212,-537.77,0.00013698,2]
[334147301,1722795045221,-640.63,0.00013698,2]
[334147303,1722795045231,-515.32158002,0.00013698,2]
[334147305,1722795045240,-471.39460102,0.00013698,2]
[334147307,1722795045249,-500.0,0.00013698,2]
[334147309,1722795045258,-500.0,0.00013698,2]
[334147311,1722795045267,-500.0,0.00013698,2]
[334147313,1722795045286,-537.45581737,0.00013698,2]
[334147315,1722795045295,-505.78543384,0.00013698,2]
[334147317,1722795045304,-500.0,0.00013698,2]
[334147319,1722795045313,-500.0,0.00013698,2]
[334147321,1722795045322,-500.0,0.00013698,2]
[334147323,1722795045331,-500.0,0.00013698,2]
[334147325,1722795045340,-500.0,0.00013698,2]
[334147327,1722795045349,-500.0,0.00013698,2]
[334147329,1722795045357,-503.20124971,0.00013698,2]
[334147331,1722795045366,-500.0,0.00013698,2]
[334147333,1722795045375,-500.0,0.00013698,2]
[334147335,1722795045384,-500.0,0.00013698,2]
[334147337,1722795045393,-500.0,0.00013698,2]
[334147339,1722795045403,-500.0,0.00013698,2]
[334147341,1722795045412,-500.0,0.00013698,2]
[334147343,1722795045422,-500.0,0.00013698,2]
[334147345,1722795045432,-500.0,0.00013698,2]
[334147347,1722795045442,-1293.19,0.00013698,2]
[334147349,1722795045451,-500.0,0.00013698,2]
[334147351,1722795045461,-200.78971945,0.00013698,2]
[334147353,1722795045472,-500.0,0.00013698,2]
[334147355,1722795045481,-500.0,0.00013698,2]
[334147357,1722795045491,-500.0,0.00013698,2]
[334147359,1722795045501,-666.79,0.00013698,2]
[334147361,1722795045510,-500.0,0.00013698,2]
[334147363,1722795045521,-500.0,0.00013698,2]
[334147365,1722795045535,-500.0,0.00013698,2]
[334147367,1722795045544,-500.0,0.00013698,2]
[334147369,1722795045553,-500.0,0.00013698,2]
[334147371,1722795045563,-547.62,0.00013698,2]
[334147373,1722795045573,-500.0,0.00013698,2]
[334147375,1722795045584,-500.0,0.00013698,2]
[334147378,1722795045595,-500.0,0.00013698,2]
[334147379,1722795045604,-500.0,0.00013698,2]
[334147381,1722795045614,-500.0,0.00013698,2]
[334147383,1722795045623,-500.0,0.00013698,2]
[334147386,1722795045633,-504.20177658,0.00013698,2]
[334147388,1722795045643,-500.0,0.00013698,2]
[334147391,1722795045653,-509.83711639,0.00013698,2]
[334147394,1722795045662,-500.0,0.00013698,2]
[334147397,1722795045673,-500.0,0.00013698,2]
[334147400,1722795045683,-502.70942991,0.00013698,2]
[334147402,1722795045693,-500.0,0.00013698,2]
[334147405,1722795045703,-500.0,0.00013698,2]
[334147407,1722795045713,-500.0,0.00013698,2]
[334147409,1722795045723,-916.34,0.00013698,2]
[334147411,1722795045733,-500.0,0.00013698,2]
[334147413,1722795045742,-500.0,0.00013698,2]
[334147415,1722795045752,-500.0,0.00013698,2]
[334147417,1722795045762,-500.0,0.00013698,2]
[334147420,1722795045778,-500.0,0.00013698,2]
[334147423,1722795045788,-884.77,0.00013698,2]
[334147426,1722795045798,-527.02,0.00013698,2]
[334147429,1722795045809,-764.16,0.00013698,2]
[334147432,1722795045818,-506.43,0.00013698,2]
[334147435,1722795045828,-500.0,0.00013698,2]
[334147438,1722795045837,-500.0,0.00013698,2]
[334147440,1722795045848,-500.0,0.00013698,2]
[334147442,1722795045859,-1076.26,0.00013698,2]
[334147444,1722795045870,-505.58056084,0.00013698,2]
[334147446,1722795045880,-3518.47,0.00013698,2]
[334147448,1722795045890,-1096.17,0.00013698,2]
[334147450,1722795045900,-501.01,0.00013698,2]
[334147452,1722795045909,-454.15113139,0.00013698,2]
[334147455,1722795045919,-528.72821766,0.00013698,2]
[334147457,1722795045929,-500.0,0.00013698,2]
[334147459,1722795045941,-1790.76,0.00013698,2]
[334147461,1722795045952,-500.0,0.00013698,2]
[334147463,1722795045963,-500.0,0.00013698,2]
[334147465,1722795045973,-344.0252494,0.00013698,2]
[334147468,1722795045985,-824.41,0.00013698,2]
[334147470,1722795045995,-500.0,0.00013698,2]
[334147472,1722795046005,-483.19777752,0.00013698,2]
[334147474,1722795046014,-500.0,0.00013698,2]
[334147476,1722795046030,-1065.17,0.00013698,2]
[334147479,1722795046040,-500.0,0.00013698,2]
[334147481,1722795046052,-434.01611273,0.00013698,2]
[334147484,1722795046063,-1923.63,0.00013698,2]
[334147486,1722795046074,-500.0,0.00013698,2]
[334147488,1722795046085,-330.97617755,0.00013698,2]
[334147490,1722795046098,-500.0,0.00013698,2]
[334147492,1722795046109,-500.0,0.00013698,2]
[334147494,1722795046120,-500.0,0.00013698,2]
[334147496,1722795046130,-554.45,0.00013698,2]
[334147498,1722795046140,-500.0,0.00013698,2]
[334147501,1722795046152,-432.48504585,0.00013698,2]
[334147503,1722795046163,-529.15,0.00013698,2]
[334147505,1722795046174,-500.0,0.00013698,2]
[334147507,1722795046188,-528.0,0.00013698,2]
[334147509,1722795046198,-500.0,0.00013698,2]
[334147511,1722795046207,-500.0,0.00013698,2]
[334147513,1722795046216,-1503.29,0.00013698,2]
[334147515,1722795046226,-703.83,0.00013698,2]
[334147517,1722795046235,-669.82,0.00013698,2]
[334147519,1722795046244,-500.0,0.00013698,2]
[334147522,1722795046256,-500.0,0.00013698,2]
[334147524,1722795046268,-500.0,0.00013698,2]
[334147526,1722795046287,-500.0,0.00013698,2]
[334147529,1722795046297,-500.0,0.00013698,2]
[334147531,1722795046307,-500.0,0.00013698,2]
[334147533,1722795046317,-500.0,0.00013698,2]
[334147535,1722795046327,-500.0,0.00013698,2]
[334147537,1722795046337,-500.0,0.00013698,2]
[334147539,1722795046346,-674.4,0.00013698,2]
[334147541,1722795046356,-500.0,0.00013698,2]
[334147543,1722795046367,-500.0,0.00013698,2]
[334147545,1722795046377,-347.20232768,0.00013698,2]
[334147547,1722795046388,-500.0,0.00013698,2]
[334147550,1722795046399,-2804.55,0.00013698,2]
[334147552,1722795046409,-500.0,0.00013698,2]
[334147554,1722795046419,-500.0,0.00013698,2]
[334147556,1722795046428,-500.0,0.00013698,2]
[334147558,1722795046439,-500.0,0.00013698,2]
[334147560,1722795046449,-507.91,0.00013698,2]
[334147562,1722795046461,-501.7411033,0.00013698,2]
[334147564,1722795046473,-3106.09,0.00013698,2]
[334147566,1722795046484,-1567.59,0.00013698,2]
[334147568,1722795046494,-519.12,0.00013698,2]
[334147571,1722795046505,-500.0,0.00013698,2]
[334147572,1722795046515,-500.0,0.00013698,2]
[334147574,1722795046532,-500.0,0.00013698,2]
[334147576,1722795046541,-609.52,0.00013698,2]
[334147578,1722795046551,-500.0,0.00013698,2]
[334147580,1722795046560,-549.75,0.00013698,2]
[334147582,1722795046571,-963.61,0.00013698,2]
[334147584,1722795046581,-3333.67,0.00013698,2]
[334147586,1722795046590,-500.0,0.00013698,2]
[334147588,1722795046600,-500.0,0.00013698,2]
[334147590,1722795046609,-500.0,0.00013698,2]
[334147592,1722795046619,-500.0,0.00013698,2]
[334147594,1722795046629,-500.0,0.00013698,2]
[334147596,1722795046638,-500.0,0.00013698,2]
[334147608,1722795046748,-500.0,0.00013698,2]
[334147610,1722795046764,-500.0,0.00013698,2]
[334147612,1722795046782,-500.0,0.00013698,2]
[334147615,1722795046793,-529.5422785,0.00013698,2]
[334147616,1722795046802,-577.38343909,0.00013698,2]
[334147618,1722795046812,-555.33,0.00013698,2]
[334147621,1722795046823,-500.0,0.00013698,2]
[334147623,1722795046833,-500.0,0.00013698,2]
[334147625,1722795046843,-503.52553137,0.00013698,2]
[334147627,1722795046854,-500.0,0.00013698,2]
[334147629,1722795046866,-500.0,0.00013698,2]
[334147631,1722795046875,-500.0,0.00013698,2]
[334147633,1722795046886,-500.0,0.00013698,2]
[334147635,1722795046898,-500.0,0.00013698,2]
[334147637,1722795046908,-500.0,0.00013698,2]
[334147639,1722795046918,-392.82270269,0.00013698,2]
[334147641,1722795046929,-3000.0,0.00013699,2]
[334147643,1722795046939,-912.72697,0.00013699,2]
[334147645,1722795046948,-150.112233,0.000137,2]
[334147647,1722795046958,-150.112233,0.000137,2]
[334147649,1722795046968,-954.83482243,0.00013717,2]
[334147651,1722795046978,-423.8504725,0.00013719,2]
[334147653,1722795046987,-1411.0,0.00013745,2]
[334147655,1722795046997,-954.83482243,0.00013872,2]
[334147657,1722795047007,-472.83171038,0.00013872,2]
[334147659,1722795047017,-993.12,0.00013961,2]
[334147661,1722795047034,-20323.6534314,0.00013962,2]
[334147663,1722795047044,-993.12,0.00013971,2]
[334147665,1722795047054,-500.0,0.00013972,2]
[334147667,1722795047063,-500.0,0.00013972,2]
[334147669,1722795047073,-500.0,0.00013972,2]
[334147671,1722795047083,-244.99126849,0.00013972,2]
[334147672,1722795047093,-500.0,0.00013972,2]
[334147674,1722795047107,-500.0,0.00013972,2]
[334147677,1722795047117,-500.0,0.00013972,2]
[334147678,1722795047127,-238.44483855,0.00013972,2]
[334147679,1722795047136,-500.0,0.00013972,2]
[334147680,1722795047146,-332.10970001,0.00013972,2]
[334147681,1722795047156,-500.0,0.00013972,2]
[334147682,1722795047165,-500.0,0.00013972,2]
[334147683,1722795047176,-500.0,0.00013972,2]
[334147684,1722795047185,-500.0,0.00013972,2]
[334147685,1722795047194,-537.77,0.00013972,2]
[334147686,1722795047204,-640.63,0.00013972,2]
[334147687,1722795047213,-500.0,0.00013972,2]
[334147688,1722795047222,-500.0,0.00013972,2]
[334147689,1722795047232,-500.0,0.00013972,2]
[334147690,1722795047242,-500.0,0.00013972,2]
[334147691,1722795047251,-500.0,0.00013972,2]
[334147692,1722795047260,-500.0,0.00013972,2]
[334147693,1722795047270,-500.0,0.00013972,2]
[334147694,1722795047289,-500.0,0.00013972,2]
[334147695,1722795047298,-628.595859,0.00013972,2]
[334147696,1722795047307,-500.0,0.00013972,2]
[334147697,1722795047317,-272.92790492,0.00013972,2]
[334147698,1722795047327,-500.0,0.00013972,2]
[334147699,1722795047336,-1293.19,0.00013972,2]
[334147700,1722795047346,-500.0,0.00013972,2]
[334147701,1722795047356,-666.79,0.00013972,2]
[334147702,1722795047365,-500.0,0.00013972,2]
[334147703,1722795047376,-500.0,0.00013972,2]
[334147704,1722795047386,-487.77073497,0.00013972,2]
[334147705,1722795047396,-500.0,0.00013972,2]
[334147706,1722795047406,-500.0,0.00013972,2]
[334147707,1722795047415,-500.0,0.00013972,2]
[334147708,1722795047425,-500.0,0.00013972,2]
[334147709,1722795047435,-389.82446263,0.00013972,2]
[334147710,1722795047446,-916.34,0.00013972,2]
[334147711,1722795047456,-500.0,0.00013972,2]
[334147712,1722795047466,-500.0,0.00013972,2]
[334147714,1722795047477,-884.77,0.00013972,2]
[334147715,1722795047486,-527.02,0.00013972,2]
[334147716,1722795047496,-764.16,0.00013972,2]
[334147717,1722795047505,-506.43,0.00013972,2]
[334147718,1722795047515,-500.0,0.00013972,2]
[334147719,1722795047532,-500.0,0.00013972,2]
[334147720,1722795047541,-1076.26,0.00013972,2]
[334147721,1722795047550,-1096.17,0.00013972,2]
[334147722,1722795047560,-3518.47,0.00013972,2]
[334147723,1722795047571,-500.0,0.00013972,2]
[334147724,1722795047580,-1790.76,0.00013972,2]
[334147725,1722795047590,-500.0,0.00013972,2]
[334147726,1722795047600,-824.41,0.00013972,2]
[334147727,1722795047609,-500.0,0.00013972,2]
[334147728,1722795047619,-1065.17,0.00013972,2]
[334147729,1722795047628,-509.25920373,0.00013972,2]
[334147731,1722795047638,-1923.63,0.00013972,2]
[334147733,1722795047648,-500.0,0.00013972,2]
[334147735,1722795047657,-500.0,0.00013972,2]
[334147737,1722795047667,-513.41672915,0.00013972,2]
[334147738,1722795047676,-374.42879708,0.00013972,2]
[334147740,1722795047686,-554.45,0.00013972,2]
[334147742,1722795047696,-500.0,0.00013972,2]
[334147744,1722795047706,-529.15,0.00013972,2]
[334147746,1722795047715,-500.0,0.00013972,2]
[334147748,1722795047725,-528.0,0.00013972,2]
[334147750,1722795047735,-500.0,0.00013972,2]
[334147752,1722795047744,-1503.29,0.00013972,2]
[334147754,1722795047754,-703.83,0.00013972,2]
[334147756,1722795047764,-669.82,0.00013972,2]
[334147758,1722795047777,-371.14816842,0.00013972,2]
[334147760,1722795047787,-500.0,0.00013972,2]
[334147761,1722795047796,-500.0,0.00013972,2]
[334147763,1722795047806,-500.0,0.00013972,2]
[334147765,1722795047815,-500.0,0.00013972,2]
[334147767,1722795047826,-500.0,0.00013972,2]
[334147769,1722795047835,-500.0,0.00013972,2]
[334147771,1722795047845,-674.4,0.00013972,2]
[334147773,1722795047855,-500.0,0.00013972,2]
[334147774,1722795047865,-500.0,0.00013972,2]
[334147775,1722795047874,-2804.55,0.00013972,2]
[334147776,1722795047884,-500.0,0.00013972,2]
[334147777,1722795047893,-500.0,0.00013972,2]
[334147778,1722795047904,-500.0,0.00013972,2]
[334147779,1722795047914,-507.91,0.00013972,2]
[334147780,1722795047925,-3106.09,0.00013972,2]
[334147781,1722795047934,-1567.59,0.00013972,2]
[334147782,1722795047944,-519.12,0.00013972,2]
[334147783,1722795047954,-500.0,0.00013972,2]
[334147784,1722795047964,-609.52,0.00013972,2]
[334147785,1722795047973,-549.75,0.00013972,2]
[334147786,1722795047982,-963.61,0.00013972,2]
[334147787,1722795047992,-3333.67,0.00013972,2]
[334147788,1722795048001,-500.0,0.00013972,2]
[334147789,1722795048010,-500.0,0.00013972,2]
[334147790,1722795048020,-500.0,0.00013972,2]
[334147791,1722795048034,-500.0,0.00013972,2]
[334147792,1722795048044,-555.33,0.00013972,2]
[334147793,1722795048054,-500.0,0.00013972,2]
[334147794,1722795048064,-500.0,0.00013972,2]
[334147795,1722795048074,-500.0,0.00013972,2]